[Event "Titled Tuesday Blitz November 15 Early 2022"]
[White "Cramling Bellon, Anna"]
[Black "Vlassov, Nikolai"]
[WhiteFideId "32009232"]
[BlackFideId "4103360"]
[WhiteElo "1972"]
[BlackElo "2324"]
[Result "0-1"]
[Round "07"]
[TimeControl "180+1"]
[Date "2022.11.16"]
[WhiteClock "0:00:04"]
[BlackClock "0:01:25"]

1. d4 {[%clk 0:03:00]}  Nf6 {[%clk 0:02:59]} 2. c4 {[%clk 0:03:00]}  Nc6 {[%clk 0:02:58]} 3. Nf3 {[%clk 0:02:47]}  e6 {[%clk 0:02:58]} 4. d5 {[%clk 0:02:46]}  exd5 {[%clk 0:02:58]} 5. cxd5 {[%clk 0:02:47]}  Bb4+ {[%clk 0:02:58]} 6. Nc3 {[%clk 0:02:44]}  Ne7 {[%clk 0:02:56]} 7. e4 {[%clk 0:01:56]}  Nxe4 {[%clk 0:02:55]} 8. Qd4 {[%clk 0:01:50]}  Bxc3+ {[%clk 0:02:55]} 9. bxc3 {[%clk 0:01:48]}  Nf6 {[%clk 0:02:55]} 10. c4 {[%clk 0:01:44]}  d6 {[%clk 0:02:54]} 11. Bd3 {[%clk 0:01:40]}  O-O {[%clk 0:02:54]} 12. O-O {[%clk 0:01:38]}  Bf5 {[%clk 0:02:53]} 13. Bb2 {[%clk 0:01:16]}  Qd7 {[%clk 0:02:50]} 14. Rfe1 {[%clk 0:01:04]}  Rfe8 {[%clk 0:02:47]} 15. Bxf5 {[%clk 0:00:52]}  Qxf5 {[%clk 0:02:34]} 16. Qh4 {[%clk 0:00:36]}  Ng6 {[%clk 0:02:31]} 17. Qg5 {[%clk 0:00:23]}  Qxg5 {[%clk 0:02:26]} 18. Nxg5 {[%clk 0:00:24]}  Rxe1+ {[%clk 0:02:26]} 19. Rxe1 {[%clk 0:00:24]}  Re8 {[%clk 0:02:26]} 20. Rxe8+ {[%clk 0:00:18]}  Nxe8 {[%clk 0:02:26]} 21. g3 {[%clk 0:00:16]}  Ne5 {[%clk 0:02:22]} 22. Bxe5 {[%clk 0:00:07]}  dxe5 {[%clk 0:02:22]} 23. Kg2 {[%clk 0:00:05]}  b6 {[%clk 0:02:21]} 24. Kf3 {[%clk 0:00:05]}  Nd6 {[%clk 0:02:21]} 25. c5 {[%clk 0:00:04]}  bxc5 {[%clk 0:02:21]} 26. Ke2 {[%clk 0:00:03]}  c4 {[%clk 0:02:11]} 27. Kd2 {[%clk 0:00:03]}  h6 {[%clk 0:02:03]} 28. Nh3 {[%clk 0:00:01]}  g5 {[%clk 0:01:43]} 29. f3 {[%clk 0:00:01]}  f5 {[%clk 0:01:40]} 30. Nf2 {[%clk 0:00:02]}  Kf7 {[%clk 0:01:39]} 31. Kc3 {[%clk 0:00:02]}  Kf6 {[%clk 0:01:38]} 32. a3 {[%clk 0:00:02]}  h5 {[%clk 0:01:34]} 33. h3 {[%clk 0:00:02]}  e4 {[%clk 0:01:29]} 34. fxe4 {[%clk 0:00:02]}  Nxe4+ {[%clk 0:01:26]} 35. Nxe4+ {[%clk 0:00:02]}  fxe4 {[%clk 0:01:26]} 36. Kxc4 {[%clk 0:00:03]}  Ke5 {[%clk 0:01:25]} 37. Kc5 {[%clk 0:00:03]}  e3 {[%clk 0:01:26]} 38. Kc6 {[%clk 0:00:04]}  e2 {[%clk 0:01:26]} 39. Kxc7 {[%clk 0:00:04]}  Kxd5 {[%clk 0:01:25]} 0-1


[Site "https://www.chess.com"]

[Event "Titled Tuesday Blitz November 15 Early 2022"]
[White "Donchenko, Alexander"]
[Black "Itgelt, Khuyagtsogt"]
[WhiteFideId "24603295"]
[BlackFideId "4902912"]
[WhiteElo "2572"]
[BlackElo "2129"]
[Result "0-1"]
[Round "07"]
[TimeControl "180+1"]
[Date "2022.11.16"]
[WhiteClock "0:00:11"]
[BlackClock "0:00:14"]

1. Nf3 {[%clk 0:03:00]}  Nf6 {[%clk 0:02:59]} 2. g3 {[%clk 0:03:01]}  e6 {[%clk 0:03:00]} 3. Bg2 {[%clk 0:03:01]}  d5 {[%clk 0:03:00]} 4. O-O {[%clk 0:03:02]}  Be7 {[%clk 0:03:01]} 5. b3 {[%clk 0:03:02]}  c5 {[%clk 0:03:00]} 6. Bb2 {[%clk 0:03:03]}  Nc6 {[%clk 0:03:01]} 7. e3 {[%clk 0:03:03]}  O-O {[%clk 0:03:01]} 8. c4 {[%clk 0:03:03]}  b6 {[%clk 0:02:54]} 9. Nc3 {[%clk 0:03:01]}  Ba6 {[%clk 0:02:47]} 10. d3 {[%clk 0:02:57]}  Bb7 {[%clk 0:02:46]} 11. cxd5 {[%clk 0:02:56]}  exd5 {[%clk 0:02:43]} 12. d4 {[%clk 0:02:55]}  Re8 {[%clk 0:02:37]} 13. Rc1 {[%clk 0:02:53]}  Rc8 {[%clk 0:02:30]} 14. Re1 {[%clk 0:02:49]}  h6 {[%clk 0:02:27]} 15. Bh3 {[%clk 0:02:48]}  Rb8 {[%clk 0:02:24]} 16. Bg2 {[%clk 0:02:25]}  Bf8 {[%clk 0:02:12]} 17. dxc5 {[%clk 0:02:17]}  bxc5 {[%clk 0:02:13]} 18. Na4 {[%clk 0:02:17]}  Ne4 {[%clk 0:02:11]} 19. Nd2 {[%clk 0:02:15]}  Nb4 {[%clk 0:01:57]} 20. Nxe4 {[%clk 0:01:44]}  dxe4 {[%clk 0:01:57]} 21. Qg4 {[%clk 0:01:37]}  Nd3 {[%clk 0:01:53]} 22. Red1 {[%clk 0:01:36]}  Qc8 {[%clk 0:01:36]} 23. Qxc8 {[%clk 0:01:36]}  Rexc8 {[%clk 0:01:35]} 24. Rc4 {[%clk 0:01:27]}  f5 {[%clk 0:01:26]} 25. Ba3 {[%clk 0:01:23]}  Bd5 {[%clk 0:01:20]} 26. Rc2 {[%clk 0:01:20]}  Be6 {[%clk 0:01:04]} 27. Bf1 {[%clk 0:00:59]}  c4 {[%clk 0:00:55]} 28. Bxf8 {[%clk 0:00:58]}  Kxf8 {[%clk 0:00:56]} 29. bxc4 {[%clk 0:00:57]}  Rxc4 {[%clk 0:00:52]} 30. Rxc4 {[%clk 0:00:37]}  Bxc4 {[%clk 0:00:53]} 31. Nc5 {[%clk 0:00:38]}  Rd8 {[%clk 0:00:39]} 32. f3 {[%clk 0:00:31]}  Ke7 {[%clk 0:00:37]} 33. fxe4 {[%clk 0:00:29]}  Nxc5 {[%clk 0:00:27]} 34. Rxd8 {[%clk 0:00:29]}  Kxd8 {[%clk 0:00:25]} 35. Bxc4 {[%clk 0:00:30]}  Nxe4 {[%clk 0:00:25]} 36. Kg2 {[%clk 0:00:30]}  g5 {[%clk 0:00:23]} 37. Bd3 {[%clk 0:00:26]}  Nd6 {[%clk 0:00:23]} 38. Kf3 {[%clk 0:00:24]}  Ke7 {[%clk 0:00:22]} 39. g4 {[%clk 0:00:24]}  Kf6 {[%clk 0:00:14]} 40. h3 {[%clk 0:00:21]}  Ke5 {[%clk 0:00:14]} 41. Ke2 {[%clk 0:00:20]}  f4 {[%clk 0:00:13]} 42. Kf3 {[%clk 0:00:20]}  fxe3 {[%clk 0:00:09]} 43. Kxe3 {[%clk 0:00:21]}  Ne8 {[%clk 0:00:04]} 44. Bg6 {[%clk 0:00:20]}  Nc7 {[%clk 0:00:05]} 45. Be4 {[%clk 0:00:18]}  Ne6 {[%clk 0:00:05]} 46. Bd3 {[%clk 0:00:16]}  Nf4 {[%clk 0:00:05]} 47. Bf1 {[%clk 0:00:16]}  a5 {[%clk 0:00:05]} 48. a3 {[%clk 0:00:15]}  Kd5 {[%clk 0:00:05]} 49. h4 {[%clk 0:00:14]}  Ke5 {[%clk 0:00:05]} 50. hxg5 {[%clk 0:00:14]}  hxg5 {[%clk 0:00:06]} 51. Bc4 {[%clk 0:00:14]}  Ng6 {[%clk 0:00:03]} 52. Bd3 {[%clk 0:00:13]}  Nf4 {[%clk 0:00:03]} 53. Be4 {[%clk 0:00:13]}  Ne6 {[%clk 0:00:03]} 54. Bd3 {[%clk 0:00:13]}  Nc5 {[%clk 0:00:03]} 55. Bc4 {[%clk 0:00:13]}  Nd7 {[%clk 0:00:03]} 56. Bd3 {[%clk 0:00:11]}  Nf6 {[%clk 0:00:04]} 57. Be2 {[%clk 0:00:11]}  Nd5+ {[%clk 0:00:04]} 58. Kf3 {[%clk 0:00:10]}  Nc3 {[%clk 0:00:04]} 59. Ba6 {[%clk 0:00:08]}  Kd4 {[%clk 0:00:05]} 60. Bc8 {[%clk 0:00:07]}  Nb1 {[%clk 0:00:04]} 61. a4 {[%clk 0:00:07]}  Nc3 {[%clk 0:00:04]} 62. Bd7 {[%clk 0:00:08]}  Ne4 {[%clk 0:00:05]} 63. Be8 {[%clk 0:00:07]}  Nc5 {[%clk 0:00:05]} 64. Bc6 {[%clk 0:00:06]}  Kd3 {[%clk 0:00:05]} 65. Bb5+ {[%clk 0:00:06]}  Kd4 {[%clk 0:00:05]} 66. Bc6 {[%clk 0:00:06]}  Nd3 {[%clk 0:00:05]} 67. Bb5 {[%clk 0:00:06]}  Ne5+ {[%clk 0:00:06]} 68. Kg3 {[%clk 0:00:05]}  Ke3 {[%clk 0:00:06]} 69. Be8 {[%clk 0:00:04]}  Nc4 {[%clk 0:00:06]} 70. Bb5 {[%clk 0:00:04]}  Nd2 {[%clk 0:00:06]} 71. Bc6 {[%clk 0:00:04]}  Ne4+ {[%clk 0:00:07]} 72. Bxe4 {[%clk 0:00:03]}  Kxe4 {[%clk 0:00:08]} 73. Kg2 {[%clk 0:00:04]}  Kf4 {[%clk 0:00:08]} 74. Kf2 {[%clk 0:00:04]}  Kxg4 {[%clk 0:00:08]} 75. Kg2 {[%clk 0:00:05]}  Kf4 {[%clk 0:00:09]} 76. Kf2 {[%clk 0:00:04]}  Ke4 {[%clk 0:00:08]} 77. Kg3 {[%clk 0:00:05]}  Kd4 {[%clk 0:00:09]} 78. Kg4 {[%clk 0:00:06]}  Kc4 {[%clk 0:00:10]} 79. Kxg5 {[%clk 0:00:06]}  Kb4 {[%clk 0:00:11]} 80. Kf4 {[%clk 0:00:07]}  Kxa4 {[%clk 0:00:11]} 81. Ke3 {[%clk 0:00:08]}  Kb3 {[%clk 0:00:12]} 82. Kd2 {[%clk 0:00:09]}  Kb2 {[%clk 0:00:13]} 83. Kd3 {[%clk 0:00:10]}  a4 {[%clk 0:00:14]} 84. Kc4 {[%clk 0:00:11]}  a3 {[%clk 0:00:14]} 0-1


[Site "https://www.chess.com"]

[Event "Titled Tuesday Blitz November 15 Early 2022"]
[White "Durarbayli, Vasif"]
[Black "Xiong, Jeffery"]
[WhiteFideId "13402935"]
[BlackFideId "2047640"]
[WhiteElo "2586"]
[BlackElo "2725"]
[Result "1/2-1/2"]
[Round "07"]
[TimeControl "180+1"]
[Date "2022.11.15"]
[WhiteClock "0:00:43"]
[BlackClock "0:00:40"]

1. e4 {[%clk 0:03:00]}  e5 {[%clk 0:03:00]} 2. Nf3 {[%clk 0:03:01]}  Nf6 {[%clk 0:03:01]} 3. Nxe5 {[%clk 0:03:00]}  d6 {[%clk 0:03:01]} 4. Nf3 {[%clk 0:03:00]}  Nxe4 {[%clk 0:03:02]} 5. d4 {[%clk 0:03:00]}  d5 {[%clk 0:03:02]} 6. Bd3 {[%clk 0:03:01]}  Be7 {[%clk 0:03:03]} 7. O-O {[%clk 0:03:01]}  Bf5 {[%clk 0:03:02]} 8. Re1 {[%clk 0:02:56]}  O-O {[%clk 0:03:00]} 9. Nbd2 {[%clk 0:02:55]}  Nd6 {[%clk 0:03:01]} 10. Nf1 {[%clk 0:02:56]}  Bg6 {[%clk 0:03:01]} 11. Ng3 {[%clk 0:02:49]}  Nd7 {[%clk 0:03:01]} 12. Bf4 {[%clk 0:02:44]}  c6 {[%clk 0:02:59]} 13. Qd2 {[%clk 0:02:32]}  Re8 {[%clk 0:02:55]} 14. Ne5 {[%clk 0:02:28]}  Nxe5 {[%clk 0:02:53]} 15. dxe5 {[%clk 0:02:09]}  Nc4 {[%clk 0:02:53]} 16. Qc3 {[%clk 0:02:02]}  Qb6 {[%clk 0:02:52]} 17. Bxg6 {[%clk 0:01:46]}  fxg6 {[%clk 0:02:49]} 18. Re2 {[%clk 0:01:30]}  Rf8 {[%clk 0:02:35]} 19. Be3 {[%clk 0:01:26]}  Nxe3 {[%clk 0:02:35]} 20. fxe3 {[%clk 0:01:27]}  Rae8 {[%clk 0:02:36]} 21. Rf1 {[%clk 0:01:03]}  Rxf1+ {[%clk 0:02:35]} 22. Nxf1 {[%clk 0:01:04]}  Bb4 {[%clk 0:02:27]} 23. Qd4 {[%clk 0:01:04]}  Bc5 {[%clk 0:02:28]} 24. Qc3 {[%clk 0:01:05]}  Qb4 {[%clk 0:02:25]} 25. Qxb4 {[%clk 0:00:56]}  Bxb4 {[%clk 0:02:26]} 26. c3 {[%clk 0:00:56]}  Bc5 {[%clk 0:02:24]} 27. Rf2 {[%clk 0:00:53]}  Rxe5 {[%clk 0:02:24]} 28. Rf3 {[%clk 0:00:54]}  g5 {[%clk 0:02:15]} 29. h3 {[%clk 0:00:54]}  g6 {[%clk 0:02:15]} 30. Kf2 {[%clk 0:00:54]}  Kg7 {[%clk 0:02:12]} 31. Ke2 {[%clk 0:00:55]}  h5 {[%clk 0:02:13]} 32. Kd3 {[%clk 0:00:55]}  Bd6 {[%clk 0:02:12]} 33. b4 {[%clk 0:00:53]}  Rf5 {[%clk 0:02:08]} 34. Nd2 {[%clk 0:00:52]}  g4 {[%clk 0:02:08]} 35. hxg4 {[%clk 0:00:52]}  hxg4 {[%clk 0:02:09]} 36. Rf1 {[%clk 0:00:53]}  Rh5 {[%clk 0:02:04]} 37. e4 {[%clk 0:00:50]}  Rh2 {[%clk 0:02:04]} 38. Rf2 {[%clk 0:00:50]}  Rh5 {[%clk 0:01:34]} 39. a4 {[%clk 0:00:50]}  Bg3 {[%clk 0:01:33]} 40. Re2 {[%clk 0:00:50]}  Bf4 {[%clk 0:01:33]} 41. Nb3 {[%clk 0:00:48]}  Rh1 {[%clk 0:01:02]} 42. exd5 {[%clk 0:00:46]}  cxd5 {[%clk 0:01:03]} 43. Nc5 {[%clk 0:00:46]}  Kf6 {[%clk 0:00:53]} 44. Nxb7 {[%clk 0:00:46]}  Rd1+ {[%clk 0:00:54]} 45. Kc2 {[%clk 0:00:46]}  Rc1+ {[%clk 0:00:55]} 46. Kd3 {[%clk 0:00:45]}  Rd1+ {[%clk 0:00:54]} 47. Kc2 {[%clk 0:00:45]}  Rc1+ {[%clk 0:00:55]} 48. Kd3 {[%clk 0:00:43]}  Rd1+ {[%clk 0:00:40]} 1/2-1/2


[Site "https://www.chess.com"]

[Event "Titled Tuesday Blitz November 15 Early 2022"]
[White "Fernandez Guillen, Ernesto J."]
[Black "Taboas Rodriguez, Daniel"]
[WhiteFideId "3512428"]
[BlackFideId "2208466"]
[WhiteElo "2450"]
[BlackElo "2329"]
[Result "1-0"]
[Round "07"]
[TimeControl "180+1"]
[Date "2022.11.16"]
[WhiteClock "0:02:20"]
[BlackClock "0:01:17"]

1. e4 {[%clk 0:03:00]}  e5 {[%clk 0:02:58]} 2. Nf3 {[%clk 0:02:58]}  Nc6 {[%clk 0:02:57]} 3. d4 {[%clk 0:02:58]}  exd4 {[%clk 0:02:57]} 4. Bc4 {[%clk 0:02:59]}  Nf6 {[%clk 0:02:50]} 5. O-O {[%clk 0:02:57]}  Nxe4 {[%clk 0:02:50]} 6. Re1 {[%clk 0:02:56]}  d5 {[%clk 0:02:50]} 7. Bxd5 {[%clk 0:02:57]}  Qxd5 {[%clk 0:02:51]} 8. Nc3 {[%clk 0:02:58]}  Qa5 {[%clk 0:02:51]} 9. Nxe4 {[%clk 0:02:59]}  Be6 {[%clk 0:02:51]} 10. Bd2 {[%clk 0:02:59]}  Qf5 {[%clk 0:02:44]} 11. Bg5 {[%clk 0:02:58]}  h6 {[%clk 0:02:40]} 12. Bh4 {[%clk 0:02:52]}  Bb4 {[%clk 0:01:54]} 13. Nxd4 {[%clk 0:02:38]}  Qd5 {[%clk 0:01:36]} 14. Nxe6 {[%clk 0:02:22]}  fxe6 {[%clk 0:01:17]} 15. Nf6+ {[%clk 0:02:20]} 1-0


[Site "https://www.chess.com"]

[Event "Titled Tuesday Blitz November 15 Early 2022"]
[White "Fernandez Siles, Luis"]
[Black "Safin, Robert"]
[WhiteFideId "2209420"]
[BlackFideId "34189120"]
[WhiteElo "2186"]
[BlackElo "2253"]
[Result "1-0"]
[Round "07"]
[TimeControl "180+1"]
[Date "2022.11.16"]
[WhiteClock "0:00:13"]
[BlackClock "0:00:01"]

1. d4 {[%clk 0:03:00]}  Nf6 {[%clk 0:02:58]} 2. c4 {[%clk 0:03:00]}  e6 {[%clk 0:02:57]} 3. Nc3 {[%clk 0:03:00]}  d5 {[%clk 0:02:54]} 4. cxd5 {[%clk 0:02:58]}  exd5 {[%clk 0:02:54]} 5. Bg5 {[%clk 0:02:58]}  c6 {[%clk 0:02:52]} 6. e3 {[%clk 0:02:58]}  Bf5 {[%clk 0:02:52]} 7. Qf3 {[%clk 0:02:57]}  Bg6 {[%clk 0:02:52]} 8. Bxf6 {[%clk 0:02:57]}  Qxf6 {[%clk 0:02:53]} 9. Qxf6 {[%clk 0:02:57]}  gxf6 {[%clk 0:02:53]} 10. Nf3 {[%clk 0:02:39]}  Nd7 {[%clk 0:02:51]} 11. Nh4 {[%clk 0:02:34]}  Bb4 {[%clk 0:02:25]} 12. Rc1 {[%clk 0:02:25]}  Nb6 {[%clk 0:02:05]} 13. b3 {[%clk 0:02:25]}  Ba3 {[%clk 0:01:51]} 14. Rd1 {[%clk 0:02:06]}  a5 {[%clk 0:01:40]} 15. f4 {[%clk 0:02:06]}  Bb4 {[%clk 0:01:37]} 16. Kd2 {[%clk 0:02:01]}  Be4 {[%clk 0:01:32]} 17. a4 {[%clk 0:01:59]}  Rc8 {[%clk 0:01:20]} 18. Bd3 {[%clk 0:01:53]}  c5 {[%clk 0:01:10]} 19. Rc1 {[%clk 0:01:48]}  cxd4 {[%clk 0:00:31]} 20. exd4 {[%clk 0:01:45]}  O-O {[%clk 0:00:31]} 21. Rhe1 {[%clk 0:01:25]}  Rc7 {[%clk 0:00:17]} 22. Re3 {[%clk 0:01:14]}  Rfc8 {[%clk 0:00:15]} 23. Be2 {[%clk 0:01:00]}  Nd7 {[%clk 0:00:09]} 24. Bg4 {[%clk 0:00:55]}  Kf8 {[%clk 0:00:04]} 25. Bxd7 {[%clk 0:00:23]}  Rxd7 {[%clk 0:00:04]} 26. g3 {[%clk 0:00:16]}  Rdc7 {[%clk 0:00:02]} 27. Nf3 {[%clk 0:00:16]}  Ke7 {[%clk 0:00:02]} 28. Ng1 {[%clk 0:00:16]}  Kd6 {[%clk 0:00:02]} 29. Ne2 {[%clk 0:00:16]}  f5 {[%clk 0:00:01]} 30. Kd1 {[%clk 0:00:13]} 1-0


[Site "https://www.chess.com"]

[Event "Titled Tuesday Blitz November 15 Early 2022"]
[White "Fiol, Fabrice"]
[Black "Sailer, Mike"]
[WhiteFideId "611670"]
[BlackFideId "2012901"]
[WhiteElo "2410"]
[BlackElo "2109"]
[Result "1-0"]
[Round "07"]
[TimeControl "180+1"]
[Date "2022.11.16"]
[WhiteClock "0:00:28"]
[BlackClock "0:00:19"]

1. e4 {[%clk 0:03:00]}  d5 {[%clk 0:02:59]} 2. exd5 {[%clk 0:03:00]}  Qxd5 {[%clk 0:02:59]} 3. Nf3 {[%clk 0:02:59]}  Bg4 {[%clk 0:02:59]} 4. Be2 {[%clk 0:03:00]}  Nc6 {[%clk 0:02:59]} 5. d4 {[%clk 0:02:58]}  O-O-O {[%clk 0:03:00]} 6. c4 {[%clk 0:02:55]}  Qf5 {[%clk 0:02:59]} 7. Be3 {[%clk 0:02:54]}  Nf6 {[%clk 0:03:00]} 8. Nc3 {[%clk 0:02:52]}  e5 {[%clk 0:03:00]} 9. d5 {[%clk 0:02:52]}  e4 {[%clk 0:03:01]} 10. Nd4 {[%clk 0:02:41]}  Nxd4 {[%clk 0:02:54]} 11. Qxd4 {[%clk 0:02:32]}  b6 {[%clk 0:02:38]} 12. Bxg4 {[%clk 0:02:08]}  Qxg4 {[%clk 0:02:28]} 13. O-O {[%clk 0:01:33]}  Bd6 {[%clk 0:02:26]} 14. f3 {[%clk 0:01:24]}  exf3 {[%clk 0:02:05]} 15. Rxf3 {[%clk 0:01:24]}  Rhe8 {[%clk 0:01:36]} 16. Bf2 {[%clk 0:01:13]}  h5 {[%clk 0:01:14]} 17. h3 {[%clk 0:01:09]}  Qg6 {[%clk 0:00:53]} 18. Qd1 {[%clk 0:01:07]}  Ne4 {[%clk 0:00:48]} 19. Nxe4 {[%clk 0:01:02]}  Rxe4 {[%clk 0:00:46]} 20. Qa4 {[%clk 0:01:02]}  Kb8 {[%clk 0:00:37]} 21. Rf1 {[%clk 0:01:00]}  Rde8 {[%clk 0:00:36]} 22. b4 {[%clk 0:00:43]}  Rxc4 {[%clk 0:00:34]} 23. Qxe8+ {[%clk 0:00:42]}  Kb7 {[%clk 0:00:34]} 24. a3 {[%clk 0:00:32]}  f6 {[%clk 0:00:22]} 25. Qe2 {[%clk 0:00:28]}  Rc2 {[%clk 0:00:19]} 26. Qd3 {[%clk 0:00:28]} 1-0


[Site "https://www.chess.com"]

[Event "Titled Tuesday Blitz November 15 Early 2022"]
[White "Galchenko, Matvey"]
[Black "Gabdrakhmanov, Azat"]
[WhiteFideId "24175480"]
[BlackFideId "34189197"]
[WhiteElo "2403"]
[BlackElo "2254"]
[Result "1-0"]
[Round "07"]
[TimeControl "180+1"]
[Date "2022.11.16"]
[WhiteClock "0:00:05"]
[BlackClock "0:00:06"]

1. f4 {[%clk 0:02:56]}  c5 {[%clk 0:03:00]} 2. Nf3 {[%clk 0:02:56]}  Nc6 {[%clk 0:03:00]} 3. g3 {[%clk 0:02:57]}  g6 {[%clk 0:03:00]} 4. Bg2 {[%clk 0:02:58]}  Bg7 {[%clk 0:03:00]} 5. O-O {[%clk 0:02:58]}  e6 {[%clk 0:03:01]} 6. d3 {[%clk 0:02:59]}  Nge7 {[%clk 0:03:01]} 7. Nc3 {[%clk 0:03:00]}  d5 {[%clk 0:03:01]} 8. e4 {[%clk 0:03:01]}  b6 {[%clk 0:02:57]} 9. h3 {[%clk 0:02:56]}  Bb7 {[%clk 0:02:57]} 10. g4 {[%clk 0:02:57]}  h5 {[%clk 0:02:51]} 11. e5 {[%clk 0:02:50]}  hxg4 {[%clk 0:02:50]} 12. hxg4 {[%clk 0:02:51]}  Qc7 {[%clk 0:02:46]} 13. Nb5 {[%clk 0:02:50]}  Qd7 {[%clk 0:02:44]} 14. Nd6+ {[%clk 0:02:51]}  Kf8 {[%clk 0:02:45]} 15. Ng5 {[%clk 0:02:48]}  Nd8 {[%clk 0:02:42]} 16. Qe2 {[%clk 0:02:25]}  Nc8 {[%clk 0:02:38]} 17. Nxb7 {[%clk 0:02:22]}  Qxb7 {[%clk 0:02:39]} 18. f5 {[%clk 0:02:19]}  gxf5 {[%clk 0:02:28]} 19. gxf5 {[%clk 0:02:14]}  Bh6 {[%clk 0:02:26]} 20. Qh5 {[%clk 0:01:52]}  Bg7 {[%clk 0:02:14]} 21. Qe2 {[%clk 0:01:18]}  Bh6 {[%clk 0:02:14]} 22. fxe6 {[%clk 0:01:10]}  Bxg5 {[%clk 0:02:13]} 23. Bxg5 {[%clk 0:01:11]}  Nxe6 {[%clk 0:02:12]} 24. Bf6 {[%clk 0:01:11]}  Rg8 {[%clk 0:02:11]} 25. c3 {[%clk 0:01:08]}  Ne7 {[%clk 0:02:03]} 26. Kh2 {[%clk 0:01:01]}  Ng6 {[%clk 0:01:57]} 27. Qh5 {[%clk 0:00:58]}  Ke8 {[%clk 0:01:53]} 28. Qh7 {[%clk 0:00:49]}  Rf8 {[%clk 0:01:34]} 29. Bh3 {[%clk 0:00:49]}  Nef4 {[%clk 0:00:43]} 30. Bf5 {[%clk 0:00:27]}  d4 {[%clk 0:00:43]} 31. Be4 {[%clk 0:00:21]}  Qc8 {[%clk 0:00:41]} 32. Rae1 {[%clk 0:00:13]}  Kd7 {[%clk 0:00:41]} 33. Bf5+ {[%clk 0:00:13]}  Ne6 {[%clk 0:00:40]} 34. Bxg6 {[%clk 0:00:12]}  Ng5 {[%clk 0:00:25]} 35. Bxg5 {[%clk 0:00:07]}  Rh8 {[%clk 0:00:24]} 36. Rxf7+ {[%clk 0:00:07]}  Kc6 {[%clk 0:00:20]} 37. Be4+ {[%clk 0:00:07]}  Kb5 {[%clk 0:00:20]} 38. c4+ {[%clk 0:00:05]}  Ka4 {[%clk 0:00:17]} 39. Bxa8 {[%clk 0:00:04]}  Qxa8 {[%clk 0:00:16]} 40. e6 {[%clk 0:00:02]}  Qg8 {[%clk 0:00:15]} 41. Qxh8 {[%clk 0:00:01]}  Qxh8+ {[%clk 0:00:16]} 42. Kg3 {[%clk 0:00:02]}  Qh5 {[%clk 0:00:16]} 43. Re5 {[%clk 0:00:02]}  Qh1 {[%clk 0:00:11]} 44. Bf4 {[%clk 0:00:02]}  Qg1+ {[%clk 0:00:11]} 45. Kf3 {[%clk 0:00:02]}  Qh1+ {[%clk 0:00:10]} 46. Kg4 {[%clk 0:00:03]}  Qg2+ {[%clk 0:00:08]} 47. Bg3 {[%clk 0:00:04]}  Qh1 {[%clk 0:00:04]} 48. e7 {[%clk 0:00:04]}  Qd1+ {[%clk 0:00:05]} 49. Rf3 {[%clk 0:00:04]}  Kb4 {[%clk 0:00:05]} 50. e8=Q {[%clk 0:00:05]}  a6 {[%clk 0:00:05]} 51. a3+ {[%clk 0:00:04]}  Kb3 {[%clk 0:00:06]} 52. Re2 {[%clk 0:00:04]}  Qh1 {[%clk 0:00:06]} 53. Qe4 {[%clk 0:00:05]}  Qh7 {[%clk 0:00:06]} 54. Qxh7 {[%clk 0:00:05]} 1-0


[Site "https://www.chess.com"]

[Event "Titled Tuesday Blitz November 15 Early 2022"]
[White "Garv Gaur"]
[Black "Saya, Ethan"]
[WhiteFideId "45030839"]
[BlackFideId "26095181"]
[WhiteElo "1960"]
[BlackElo "2162"]
[Result "0-1"]
[Round "07"]
[TimeControl "180+1"]
[Date "2022.11.16"]
[WhiteClock "0:00:01"]
[BlackClock "0:00:02"]

1. d4 {[%clk 0:03:00]}  Nf6 {[%clk 0:02:58]} 2. c4 {[%clk 0:02:59]}  e6 {[%clk 0:02:58]} 3. Nc3 {[%clk 0:02:59]}  Bb4 {[%clk 0:02:58]} 4. e3 {[%clk 0:02:58]}  O-O {[%clk 0:02:57]} 5. Bd3 {[%clk 0:02:58]}  d5 {[%clk 0:02:56]} 6. cxd5 {[%clk 0:02:55]}  exd5 {[%clk 0:02:50]} 7. Qc2 {[%clk 0:02:54]}  c5 {[%clk 0:02:48]} 8. dxc5 {[%clk 0:02:48]}  Nc6 {[%clk 0:02:43]} 9. Nf3 {[%clk 0:02:46]}  d4 {[%clk 0:02:17]} 10. exd4 {[%clk 0:02:41]}  Bg4 {[%clk 0:02:11]} 11. Be3 {[%clk 0:02:35]}  Bxf3 {[%clk 0:02:10]} 12. gxf3 {[%clk 0:02:36]}  Nxd4 {[%clk 0:02:09]} 13. Bxd4 {[%clk 0:02:37]}  Qxd4 {[%clk 0:02:09]} 14. O-O-O {[%clk 0:02:37]}  Qxc5 {[%clk 0:02:03]} 15. Ne4 {[%clk 0:02:21]}  Nxe4 {[%clk 0:01:54]} 16. fxe4 {[%clk 0:02:18]}  Qe5 {[%clk 0:01:19]} 17. Kb1 {[%clk 0:02:15]}  a5 {[%clk 0:01:19]} 18. Rhg1 {[%clk 0:02:10]}  a4 {[%clk 0:01:15]} 19. a3 {[%clk 0:02:10]}  Be7 {[%clk 0:01:10]} 20. Qe2 {[%clk 0:02:04]}  Bf6 {[%clk 0:01:08]} 21. f4 {[%clk 0:01:48]}  Qxf4 {[%clk 0:00:50]} 22. Rdf1 {[%clk 0:01:47]}  Qe5 {[%clk 0:00:51]} 23. Rf5 {[%clk 0:01:47]}  Qd4 {[%clk 0:00:51]} 24. Rg3 {[%clk 0:01:40]}  Rfe8 {[%clk 0:00:36]} 25. Qg2 {[%clk 0:01:04]}  Rad8 {[%clk 0:00:27]} 26. h4 {[%clk 0:00:36]}  g6 {[%clk 0:00:27]} 27. h5 {[%clk 0:00:31]}  Rd6 {[%clk 0:00:22]} 28. hxg6 {[%clk 0:00:30]}  hxg6 {[%clk 0:00:23]} 29. Ka2 {[%clk 0:00:10]}  Rb6 {[%clk 0:00:18]} 30. Rf2 {[%clk 0:00:08]}  Rb3 {[%clk 0:00:16]} 31. Rxg6+ {[%clk 0:00:06]}  Kf8 {[%clk 0:00:09]} 32. Rgxf6 {[%clk 0:00:05]}  Rxb2+ {[%clk 0:00:03]} 33. Rxb2 {[%clk 0:00:05]}  Qxf6 {[%clk 0:00:04]} 34. Qc2 {[%clk 0:00:03]}  Qe6+ {[%clk 0:00:04]} 35. Qc4 {[%clk 0:00:03]}  Qxc4+ {[%clk 0:00:03]} 36. Bxc4 {[%clk 0:00:04]}  Rxe4 {[%clk 0:00:04]} 37. Bd5 {[%clk 0:00:05]}  Rf4 {[%clk 0:00:02]} 38. Rxb7 {[%clk 0:00:05]}  f6 {[%clk 0:00:02]} 39. Rb8+ {[%clk 0:00:03]}  Ke7 {[%clk 0:00:03]} 40. Rb7+ {[%clk 0:00:04]}  Kd6 {[%clk 0:00:03]} 41. Bh1 {[%clk 0:00:02]}  Rf2+ {[%clk 0:00:03]} 42. Rb2 {[%clk 0:00:01]}  Rf1 {[%clk 0:00:02]} 0-1


[Site "https://www.chess.com"]